[Event "December 19 Late 2023"]
[Site "https://www.chess.com"]
[Date "2023.12.19"]
[Round "3"]
[White "Gabuzyan, Hovhannes"]
[Black "Reprintsev, Alexander"]
[Result "1-0"]
[Board "57"]
[TimeControl "180+1"]
[WhiteFideId "13303732"]
[BlackFideId "14100541"]
[WhiteElo "2486"]
[BlackElo "2229"]
[WhiteTeam "ARM"]
[BlackTeam "UKR"]
[WhiteClock "0:00:40"]
[BlackClock "0:00:07"]

1. e4 {[%clk 0:03:00]}  d5 {[%clk 0:02:48]} 2. exd5 {[%clk 0:03:00]}  Qxd5 {[%clk 0:02:47]} 3. Nc3 {[%clk 0:03:01]}  Qa5 {[%clk 0:02:47]} 4. Nf3 {[%clk 0:03:01]}  Nc6 {[%clk 0:02:45]} 5. Bc4 {[%clk 0:03:00]}  Bg4 {[%clk 0:02:44]} 6. h3 {[%clk 0:03:00]}  Qh5 {[%clk 0:02:43]} 7. Be2 {[%clk 0:03:00]}  O-O-O {[%clk 0:02:38]} 8. O-O {[%clk 0:02:52]}  Bxf3 {[%clk 0:02:35]} 9. Bxf3 {[%clk 0:02:51]}  Qg6 {[%clk 0:02:35]} 10. d3 {[%clk 0:02:49]}  Nd4 {[%clk 0:02:35]} 11. Be3 {[%clk 0:02:46]}  e5 {[%clk 0:02:34]} 12. a4 {[%clk 0:02:39]}  a6 {[%clk 0:02:33]} 13. Bh5 {[%clk 0:02:00]}  Qe6 {[%clk 0:02:23]} 14. Ne4 {[%clk 0:01:57]}  h6 {[%clk 0:02:16]} 15. c3 {[%clk 0:01:55]}  Nf5 {[%clk 0:02:05]} 16. Bg4 {[%clk 0:01:52]}  g6 {[%clk 0:02:05]} 17. Qf3 {[%clk 0:01:31]}  h5 {[%clk 0:02:04]} 18. Bxf5 {[%clk 0:01:32]}  gxf5 {[%clk 0:02:04]} 19. Nc5 {[%clk 0:01:32]}  Bxc5 {[%clk 0:02:03]} 20. Bxc5 {[%clk 0:01:33]}  Nf6 {[%clk 0:01:36]} 21. Rfe1 {[%clk 0:01:30]}  Rhe8 {[%clk 0:01:27]} 22. Bd4 {[%clk 0:01:24]}  Rd5 {[%clk 0:01:25]} 23. Re2 {[%clk 0:01:19]}  Qd6 {[%clk 0:01:22]} 24. Rae1 {[%clk 0:01:17]}  Nd7 {[%clk 0:01:18]} 25. Qxf5 {[%clk 0:01:15]}  f6 {[%clk 0:01:13]} 26. Qxh5 {[%clk 0:01:14]}  Rg8 {[%clk 0:01:12]} 27. Be3 {[%clk 0:01:08]}  Rxd3 {[%clk 0:01:12]} 28. Qh7 {[%clk 0:01:04]}  Rd8 {[%clk 0:01:05]} 29. Qf5 {[%clk 0:01:03]}  Kb8 {[%clk 0:01:05]} 30. b4 {[%clk 0:01:01]}  Rxc3 {[%clk 0:00:58]} 31. Rd2 {[%clk 0:01:01]}  Qe7 {[%clk 0:00:50]} 32. Red1 {[%clk 0:01:00]}  Kc8 {[%clk 0:00:50]} 33. Bc5 {[%clk 0:00:43]}  Qf7 {[%clk 0:00:48]} 34. a5 {[%clk 0:00:43]}  Rc4 {[%clk 0:00:45]} 35. g3 {[%clk 0:00:41]}  Rc3 {[%clk 0:00:34]} 36. h4 {[%clk 0:00:41]}  Rc4 {[%clk 0:00:34]} 37. h5 {[%clk 0:00:41]}  b6 {[%clk 0:00:10]} 38. axb6 {[%clk 0:00:40]}  cxb6 {[%clk 0:00:07]} 39. Bxb6 {[%clk 0:00:40]} 1-0

[Event "December 19 Late 2023"]
[Site "https://www.chess.com"]
[Date "2023.12.19"]
[Round "3"]
[White "Fawzy, Adham"]
[Black "Rama, Tejas"]
[Result "1-0"]
[Board "59"]
[TimeControl "180+1"]
[WhiteFideId "10613129"]
[BlackFideId "30907381"]
[WhiteElo "2550"]
[BlackElo "2089"]
[WhiteTeam "EGY"]
[BlackTeam "USA"]
[WhiteClock "0:01:00"]
[BlackClock "0:00:05"]

1. e4 {[%clk 0:03:00]}  e5 {[%clk 0:02:59]} 2. Nf3 {[%clk 0:03:00]}  Nc6 {[%clk 0:02:59]} 3. d4 {[%clk 0:03:01]}  exd4 {[%clk 0:02:59]} 4. Bc4 {[%clk 0:03:01]}  Bc5 {[%clk 0:02:58]} 5. O-O {[%clk 0:03:01]}  d6 {[%clk 0:02:53]} 6. c3 {[%clk 0:03:01]}  dxc3 {[%clk 0:02:07]} 7. Nxc3 {[%clk 0:03:00]}  Be6 {[%clk 0:02:01]} 8. Bxe6 {[%clk 0:02:46]}  fxe6 {[%clk 0:02:02]} 9. Ng5 {[%clk 0:02:40]}  Qf6 {[%clk 0:01:56]} 10. Qb3 {[%clk 0:02:40]}  O-O-O {[%clk 0:01:42]} 11. Nxe6 {[%clk 0:02:33]}  Na5 {[%clk 0:01:26]} 12. Qd5 {[%clk 0:02:26]}  Ne7 {[%clk 0:01:24]} 13. e5 {[%clk 0:02:01]}  Qg6 {[%clk 0:00:31]} 14. Nf4 {[%clk 0:01:29]}  Nxd5 {[%clk 0:00:30]} 15. Nxg6 {[%clk 0:01:30]}  Nxc3 {[%clk 0:00:29]} 16. Nxh8 {[%clk 0:01:30]}  Ne2+ {[%clk 0:00:30]} 17. Kh1 {[%clk 0:01:31]}  Rxh8 {[%clk 0:00:27]} 18. exd6 {[%clk 0:01:31]}  Bxd6 {[%clk 0:00:26]} 19. Be3 {[%clk 0:01:30]}  Nf4 {[%clk 0:00:23]} 20. Rac1 {[%clk 0:01:26]}  Nc6 {[%clk 0:00:23]} 21. Rfd1 {[%clk 0:01:26]}  Rf8 {[%clk 0:00:20]} 22. g3 {[%clk 0:01:24]}  Ng6 {[%clk 0:00:18]} 23. f4 {[%clk 0:01:25]}  h5 {[%clk 0:00:16]} 24. Kg2 {[%clk 0:01:25]}  Nge7 {[%clk 0:00:16]} 25. a3 {[%clk 0:01:24]}  Nf5 {[%clk 0:00:16]} 26. Bf2 {[%clk 0:01:24]}  h4 {[%clk 0:00:16]} 27. b4 {[%clk 0:01:24]}  hxg3 {[%clk 0:00:16]} 28. hxg3 {[%clk 0:01:25]}  a6 {[%clk 0:00:16]} 29. Rc4 {[%clk 0:01:22]}  Rg8 {[%clk 0:00:16]} 30. g4 {[%clk 0:01:22]}  Nfe7 {[%clk 0:00:16]} 31. Re4 {[%clk 0:01:21]}  g6 {[%clk 0:00:14]} 32. Bh4 {[%clk 0:01:21]}  Rg7 {[%clk 0:00:09]} 33. Bg5 {[%clk 0:01:20]}  Rf7 {[%clk 0:00:09]} 34. Kg3 {[%clk 0:01:20]}  Kd7 {[%clk 0:00:10]} 35. a4 {[%clk 0:01:20]}  b5 {[%clk 0:00:10]} 36. axb5 {[%clk 0:01:19]}  axb5 {[%clk 0:00:11]} 37. Kh4 {[%clk 0:01:18]}  Rh7+ {[%clk 0:00:10]} 38. Kg3 {[%clk 0:01:18]}  Rh8 {[%clk 0:00:11]} 39. Bf6 {[%clk 0:01:16]}  Ra8 {[%clk 0:00:11]} 40. Be5 {[%clk 0:01:16]}  Ra3+ {[%clk 0:00:12]} 41. Kh4 {[%clk 0:01:16]}  Rb3 {[%clk 0:00:08]} 42. Kg5 {[%clk 0:01:10]}  Rxb4 {[%clk 0:00:06]} 43. Re3 {[%clk 0:01:10]}  Ke8 {[%clk 0:00:05]} 44. Bxd6 {[%clk 0:01:09]}  cxd6 {[%clk 0:00:06]} 45. Rxd6 {[%clk 0:01:10]}  Rc4 {[%clk 0:00:07]} 46. Rxg6 {[%clk 0:01:09]}  Rc5+ {[%clk 0:00:07]} 47. f5 {[%clk 0:01:09]}  b4 {[%clk 0:00:07]} 48. Kh6 {[%clk 0:01:06]}  Rc3 {[%clk 0:00:07]} 49. Re1 {[%clk 0:01:04]}  b3 {[%clk 0:00:07]} 50. f6 {[%clk 0:01:03]}  b2 {[%clk 0:00:07]} 51. fxe7 {[%clk 0:01:03]}  Nxe7 {[%clk 0:00:07]} 52. Rg8+ {[%clk 0:01:01]}  Kf7 {[%clk 0:00:07]} 53. Rg7+ {[%clk 0:01:02]}  Kf8 {[%clk 0:00:05]} 54. Rgxe7 {[%clk 0:01:00]}  Rc6+ {[%clk 0:00:05]} 55. Kg5 {[%clk 0:00:59]}  Rc1 {[%clk 0:00:05]} 56. Re8+ {[%clk 0:00:59]}  Kf7 {[%clk 0:00:05]} 57. R1e7# {[%clk 0:01:00]} 1-0

[Event "December 19 Late 2023"]
[Site "https://www.chess.com"]
[Date "2023.12.19"]
[Round "3"]
[White "Kanter, Eduard"]
[Black "Wieczorek, Oskar"]
[Result "0-1"]
[Board "61"]
[TimeControl "180+1"]
[WhiteFideId "4103963"]
[BlackFideId "1133950"]
[WhiteElo "2243"]
[BlackElo "2407"]
[WhiteTeam "RUS"]
[BlackTeam "POL"]
[WhiteClock "0:00:01"]
[BlackClock "0:01:01"]

1. d4 {[%clk 0:03:00]}  Nf6 {[%clk 0:02:59]} 2. c4 {[%clk 0:03:00]}  c5 {[%clk 0:03:00]} 3. d5 {[%clk 0:03:00]}  g6 {[%clk 0:03:00]} 4. Nc3 {[%clk 0:02:57]}  Bg7 {[%clk 0:03:01]} 5. e4 {[%clk 0:02:57]}  d6 {[%clk 0:03:02]} 6. h3 {[%clk 0:02:56]}  O-O {[%clk 0:03:02]} 7. Nf3 {[%clk 0:02:56]}  e6 {[%clk 0:03:03]} 8. Bd3 {[%clk 0:02:56]}  Na6 {[%clk 0:03:04]} 9. O-O {[%clk 0:02:51]}  Nc7 {[%clk 0:03:04]} 10. Bg5 {[%clk 0:01:57]}  h6 {[%clk 0:03:00]} 11. Bh4 {[%clk 0:01:57]}  e5 {[%clk 0:02:50]} 12. Nd2 {[%clk 0:01:52]}  Qe8 {[%clk 0:02:50]} 13. a3 {[%clk 0:01:49]}  Nh5 {[%clk 0:02:46]} 14. b4 {[%clk 0:01:45]}  Nf4 {[%clk 0:02:42]} 15. Nb3 {[%clk 0:01:40]}  b6 {[%clk 0:02:41]} 16. Bg3 {[%clk 0:01:22]}  Qe7 {[%clk 0:02:33]} 17. Ra2 {[%clk 0:01:15]}  h5 {[%clk 0:02:31]} 18. Ne2 {[%clk 0:01:11]}  Nxd3 {[%clk 0:02:25]} 19. Qxd3 {[%clk 0:01:11]}  f5 {[%clk 0:02:26]} 20. f3 {[%clk 0:01:03]}  Bd7 {[%clk 0:02:08]} 21. Nc3 {[%clk 0:01:03]}  Bh6 {[%clk 0:02:02]} 22. Kh1 {[%clk 0:00:31]}  Ne8 {[%clk 0:01:31]} 23. Be1 {[%clk 0:00:28]}  Nf6 {[%clk 0:01:26]} 24. Raf2 {[%clk 0:00:22]}  h4 {[%clk 0:01:20]} 25. Bd2 {[%clk 0:00:22]}  Bxd2 {[%clk 0:01:13]} 26. Rxd2 {[%clk 0:00:22]}  Nh5 {[%clk 0:01:14]} 27. Kg1 {[%clk 0:00:12]}  Qg5 {[%clk 0:01:12]} 28. Qc2 {[%clk 0:00:04]}  Rf7 {[%clk 0:01:05]} 29. Rff2 {[%clk 0:00:04]}  Raf8 {[%clk 0:01:04]} 30. Ne2 {[%clk 0:00:04]}  fxe4 {[%clk 0:01:01]} 31. Qxe4 {[%clk 0:00:02]}  Bf5 {[%clk 0:01:01]} 32. f4 {[%clk 0:00:01]}  Bxe4 {[%clk 0:01:01]} 0-1

[Event "December 19 Late 2023"]
[Site "https://www.chess.com"]
[Date "2023.12.19"]
[Round "3"]
[White "Nilsson, Joakim"]
[Black "Ghasi, Ameet K"]
[Result "0-1"]
[Board "62"]
[TimeControl "180+1"]
[WhiteFideId "1723383"]
[BlackFideId "409200"]
[WhiteElo "2143"]
[BlackElo "2558"]
[WhiteTeam "SWE"]
[BlackTeam "ENG"]
[WhiteClock "0:00:08"]
[BlackClock "0:00:06"]

1. d4 {[%clk 0:03:00]}  Nf6 {[%clk 0:02:59]} 2. Nf3 {[%clk 0:03:01]}  g6 {[%clk 0:03:00]} 3. Bg5 {[%clk 0:03:00]}  Bg7 {[%clk 0:03:00]} 4. c3 {[%clk 0:03:00]}  O-O {[%clk 0:03:00]} 5. Nbd2 {[%clk 0:03:00]}  d5 {[%clk 0:03:01]} 6. e3 {[%clk 0:03:00]}  Nbd7 {[%clk 0:03:01]} 7. Be2 {[%clk 0:03:00]}  Re8 {[%clk 0:03:02]} 8. O-O {[%clk 0:02:58]}  e5 {[%clk 0:03:02]} 9. dxe5 {[%clk 0:02:59]}  Nxe5 {[%clk 0:03:03]} 10. Nxe5 {[%clk 0:02:59]}  Rxe5 {[%clk 0:03:04]} 11. Nf3 {[%clk 0:02:56]}  Re8 {[%clk 0:03:04]} 12. c4 {[%clk 0:02:52]}  dxc4 {[%clk 0:02:59]} 13. Qc2 {[%clk 0:02:38]}  h6 {[%clk 0:02:56]} 14. Rad1 {[%clk 0:02:35]}  Qe7 {[%clk 0:02:54]} 15. Bf4 {[%clk 0:02:32]}  Nh5 {[%clk 0:02:50]} 16. Bxc4 {[%clk 0:02:23]}  Nxf4 {[%clk 0:02:17]} 17. exf4 {[%clk 0:02:23]}  Bf5 {[%clk 0:02:09]} 18. Qb3 {[%clk 0:02:21]}  c6 {[%clk 0:02:09]} 19. Rfe1 {[%clk 0:01:51]}  Qc7 {[%clk 0:02:09]} 20. g3 {[%clk 0:01:46]}  b5 {[%clk 0:02:06]} 21. Bf1 {[%clk 0:01:45]}  Be6 {[%clk 0:02:03]} 22. Qc2 {[%clk 0:01:43]}  Bf5 {[%clk 0:01:32]} 23. Qc1 {[%clk 0:01:34]}  Bg4 {[%clk 0:01:20]} 24. Bg2 {[%clk 0:01:31]}  Rac8 {[%clk 0:01:09]} 25. h3 {[%clk 0:01:30]}  Bxf3 {[%clk 0:00:58]} 26. Bxf3 {[%clk 0:01:30]}  c5 {[%clk 0:00:58]} 27. Qc2 {[%clk 0:01:22]}  c4 {[%clk 0:00:50]} 28. Bd5 {[%clk 0:01:07]}  Kf8 {[%clk 0:00:45]} 29. f5 {[%clk 0:00:34]}  g5 {[%clk 0:00:45]} 30. f6 {[%clk 0:00:31]}  Bxf6 {[%clk 0:00:44]} 31. Qf5 {[%clk 0:00:28]}  Bxb2 {[%clk 0:00:37]} 32. Qh7 {[%clk 0:00:09]}  Bg7 {[%clk 0:00:36]} 33. Kg2 {[%clk 0:00:09]}  c3 {[%clk 0:00:36]} 34. Rc1 {[%clk 0:00:07]}  Rxe1 {[%clk 0:00:32]} 35. Rxe1 {[%clk 0:00:08]}  c2 {[%clk 0:00:32]} 36. Rc1 {[%clk 0:00:08]}  a5 {[%clk 0:00:08]} 37. Qf5 {[%clk 0:00:08]}  Rd8 {[%clk 0:00:04]} 38. Rxc2 {[%clk 0:00:08]}  Qe7 {[%clk 0:00:03]} 39. Re2 {[%clk 0:00:07]}  Qd7 {[%clk 0:00:03]} 40. Qxd7 {[%clk 0:00:06]}  Rxd7 {[%clk 0:00:04]} 41. Bc6 {[%clk 0:00:06]}  Rd8 {[%clk 0:00:04]} 42. Bxb5 {[%clk 0:00:07]}  Bd4 {[%clk 0:00:05]} 43. a4 {[%clk 0:00:08]}  Kg7 {[%clk 0:00:04]} 44. Rc2 {[%clk 0:00:08]}  Bb6 {[%clk 0:00:04]} 45. Re2 {[%clk 0:00:09]}  Rd4 {[%clk 0:00:04]} 46. Rc2 {[%clk 0:00:09]}  Rd6 {[%clk 0:00:04]} 47. Re2 {[%clk 0:00:09]}  Rf6 {[%clk 0:00:04]} 48. g4 {[%clk 0:00:10]}  Rf4 {[%clk 0:00:04]} 49. Rc2 {[%clk 0:00:10]}  Bd4 {[%clk 0:00:04]} 50. Re2 {[%clk 0:00:11]}  Bc5 {[%clk 0:00:04]} 51. Rc2 {[%clk 0:00:11]}  Bb6 {[%clk 0:00:04]} 52. Rd2 {[%clk 0:00:11]}  h5 {[%clk 0:00:04]} 53. gxh5 {[%clk 0:00:11]}  f6 {[%clk 0:00:03]} 54. Re2 {[%clk 0:00:12]}  Kh6 {[%clk 0:00:03]} 55. Re6 {[%clk 0:00:11]}  Rxf2+ {[%clk 0:00:03]} 56. Kg3 {[%clk 0:00:11]}  Bd4 {[%clk 0:00:04]} 57. Re4 {[%clk 0:00:11]}  Bc5 {[%clk 0:00:03]} 58. Re6 {[%clk 0:00:11]}  Kxh5 {[%clk 0:00:03]} 59. Rc6 {[%clk 0:00:10]}  Bd4 {[%clk 0:00:03]} 60. Rc4 {[%clk 0:00:10]}  Rf4 {[%clk 0:00:03]} 61. Be8+ {[%clk 0:00:11]}  Kh6 {[%clk 0:00:03]} 62. Rc7 {[%clk 0:00:11]}  Be5 {[%clk 0:00:03]} 63. Kg2 {[%clk 0:00:12]}  Rxa4 {[%clk 0:00:03]} 64. Re7 {[%clk 0:00:11]}  Ra2+ {[%clk 0:00:03]} 65. Kf3 {[%clk 0:00:11]}  Ra3+ {[%clk 0:00:04]} 66. Ke4 {[%clk 0:00:12]}  Rxh3 {[%clk 0:00:05]} 67. Bd7 {[%clk 0:00:12]}  Rh4+ {[%clk 0:00:05]} 68. Kd5 {[%clk 0:00:12]}  Rf4 {[%clk 0:00:06]} 69. Be6 {[%clk 0:00:12]}  g4 {[%clk 0:00:06]} 70. Rf7 {[%clk 0:00:12]}  Rd4+ {[%clk 0:00:06]} 71. Kc5 {[%clk 0:00:12]}  g3 {[%clk 0:00:06]} 72. Bf5 {[%clk 0:00:12]}  Kg5 {[%clk 0:00:07]} 73. Bc2 {[%clk 0:00:12]}  Kf4 {[%clk 0:00:07]} 74. Rg7 {[%clk 0:00:11]}  Rd2 {[%clk 0:00:07]} 75. Bh7 {[%clk 0:00:11]}  Rh2 {[%clk 0:00:07]} 76. Bd3 {[%clk 0:00:11]}  a4 {[%clk 0:00:07]} 77. Bc4 {[%clk 0:00:10]}  a3 {[%clk 0:00:08]} 78. Kb4 {[%clk 0:00:09]}  a2 {[%clk 0:00:06]} 79. Bxa2 {[%clk 0:00:08]} 0-1

[Event "December 19 Late 2023"]
[Site "https://www.chess.com"]
[Date "2023.12.19"]
[Round "3"]
[White "Slade, Theodore"]
[Black "Apoorv Kamble"]
[Result "0-1"]
[Board "64"]
[TimeControl "180+1"]
[WhiteFideId "426547"]
[BlackFideId "25683012"]
[WhiteElo "1964"]
[BlackElo "1940"]
[WhiteTeam "ENG"]
[BlackTeam "IND"]
[WhiteClock "0:00:00"]
[BlackClock "0:00:46"]

1. d4 {[%clk 0:03:00]}  Nf6 {[%clk 0:02:59]} 2. c4 {[%clk 0:03:01]}  e6 {[%clk 0:02:59]} 3. g3 {[%clk 0:03:01]}  d5 {[%clk 0:02:57]} 4. Bg2 {[%clk 0:03:02]}  Be7 {[%clk 0:02:58]} 5. Nf3 {[%clk 0:03:02]}  O-O {[%clk 0:02:58]} 6. O-O {[%clk 0:03:03]}  dxc4 {[%clk 0:02:59]} 7. Qc2 {[%clk 0:03:03]}  c6 {[%clk 0:02:58]} 8. a4 {[%clk 0:02:56]}  Nbd7 {[%clk 0:02:57]} 9. Qxc4 {[%clk 0:02:35]}  Re8 {[%clk 0:02:55]} 10. Nc3 {[%clk 0:02:32]}  Bd6 {[%clk 0:02:52]} 11. Bf4 {[%clk 0:02:21]}  Bxf4 {[%clk 0:02:50]} 12. gxf4 {[%clk 0:02:22]}  Nd5 {[%clk 0:02:51]} 13. e3 {[%clk 0:02:19]}  N7f6 {[%clk 0:02:40]} 14. Ne5 {[%clk 0:02:15]}  Nxc3 {[%clk 0:02:35]} 15. bxc3 {[%clk 0:02:15]}  Nd5 {[%clk 0:02:35]} 16. Qd3 {[%clk 0:02:05]}  c5 {[%clk 0:02:25]} 17. dxc5 {[%clk 0:01:56]}  f6 {[%clk 0:02:26]} 18. Nc4 {[%clk 0:01:51]}  Nxf4 {[%clk 0:02:24]} 19. Qxd8 {[%clk 0:01:35]}  Ne2+ {[%clk 0:02:23]} 20. Kh1 {[%clk 0:01:35]}  Rxd8 {[%clk 0:02:23]} 21. Nd6 {[%clk 0:01:26]}  Nxc3 {[%clk 0:02:11]} 22. Nxb7 {[%clk 0:01:25]}  Bxb7 {[%clk 0:02:10]} 23. Bxb7 {[%clk 0:01:25]}  Rab8 {[%clk 0:02:11]} 24. c6 {[%clk 0:01:25]}  Nd5 {[%clk 0:02:12]} 25. Rfd1 {[%clk 0:01:20]}  Nc7 {[%clk 0:02:02]} 26. Rd7 {[%clk 0:01:21]}  Rxd7 {[%clk 0:01:51]} 27. cxd7 {[%clk 0:01:21]}  Rd8 {[%clk 0:01:51]} 28. Bc6 {[%clk 0:00:58]}  Kf8 {[%clk 0:01:27]} 29. Rb1 {[%clk 0:00:56]}  a5 {[%clk 0:01:22]} 30. Rb7 {[%clk 0:00:56]}  Na6 {[%clk 0:01:22]} 31. Ra7 {[%clk 0:00:49]}  Nc5 {[%clk 0:01:22]} 32. Rxa5 {[%clk 0:00:23]}  Nxd7 {[%clk 0:01:22]} 33. Bxd7 {[%clk 0:00:16]}  Rxd7 {[%clk 0:01:22]} 34. Kg2 {[%clk 0:00:16]}  Ke7 {[%clk 0:01:22]} 35. Ra8 {[%clk 0:00:16]}  Kd6 {[%clk 0:01:22]} 36. Kf3 {[%clk 0:00:16]}  Kc5 {[%clk 0:01:22]} 37. Ke4 {[%clk 0:00:13]}  h6 {[%clk 0:01:20]} 38. h4 {[%clk 0:00:12]}  Kb6 {[%clk 0:01:13]} 39. f4 {[%clk 0:00:10]}  Re7 {[%clk 0:01:08]} 40. Kf3 {[%clk 0:00:09]}  Rc7 {[%clk 0:01:03]} 41. e4 {[%clk 0:00:08]}  Kc5 {[%clk 0:01:03]} 42. Kg4 {[%clk 0:00:06]}  Kd4 {[%clk 0:01:03]} 43. e5 {[%clk 0:00:04]}  fxe5 {[%clk 0:01:03]} 44. fxe5 {[%clk 0:00:05]}  Kxe5 {[%clk 0:01:04]} 45. a5 {[%clk 0:00:05]}  Rc4+ {[%clk 0:01:02]} 46. Kh5 {[%clk 0:00:04]}  Kf6 {[%clk 0:00:56]} 47. Rf8+ {[%clk 0:00:03]}  Ke7 {[%clk 0:00:57]} 48. Ra8 {[%clk 0:00:04]}  Kf7 {[%clk 0:00:53]} 49. a6 {[%clk 0:00:04]}  Ra4 {[%clk 0:00:52]} 50. a7 {[%clk 0:00:03]}  e5 {[%clk 0:00:47]} 51. Rb8 {[%clk 0:00:02]}  Rxa7 {[%clk 0:00:47]} 52. Rb5 {[%clk 0:00:02]}  Re7 {[%clk 0:00:45]} 53. Rb3 {[%clk 0:00:03]}  e4 {[%clk 0:00:42]} 54. Re3 {[%clk 0:00:04]}  Kf6 {[%clk 0:00:43]} 55. Kg4 {[%clk 0:00:04]}  Ke5 {[%clk 0:00:44]} 56. Re1 {[%clk 0:00:04]}  Rf7 {[%clk 0:00:43]} 57. Ra1 {[%clk 0:00:03]}  e3 {[%clk 0:00:43]} 58. Ra5+ {[%clk 0:00:03]}  Ke4 {[%clk 0:00:44]} 59. Ra4+ {[%clk 0:00:03]}  Kd3 {[%clk 0:00:44]} 60. Ra3+ {[%clk 0:00:04]}  Ke2 {[%clk 0:00:45]} 61. Ra2+ {[%clk 0:00:05]}  Kf1 {[%clk 0:00:45]} 62. Ra1+ {[%clk 0:00:00]}  Kf2 {[%clk 0:00:46]} 0-1

[Event "December 19 Late 2023"]
[Site "https://www.chess.com"]
[Date "2023.12.19"]
[Round "3"]
[White "Leiva, Gianmarco"]
[Black "Gasparyan, David"]
[Result "1-0"]
[Board "67"]
[TimeControl "180+1"]
[WhiteFideId "3804399"]
[BlackFideId "13311980"]
[WhiteElo "2338"]
[BlackElo "2480"]
[WhiteTeam "PER"]
[BlackTeam "USA"]
[WhiteClock "0:01:08"]
[BlackClock "0:00:00"]

1. e4 {[%clk 0:02:53]}  c5 {[%clk 0:02:59]} 2. Nf3 {[%clk 0:02:52]}  e6 {[%clk 0:02:56]} 3. c3 {[%clk 0:02:53]}  Nf6 {[%clk 0:02:52]} 4. Bd3 {[%clk 0:02:51]}  d6 {[%clk 0:02:46]} 5. Bc2 {[%clk 0:02:50]}  Be7 {[%clk 0:02:40]} 6. d4 {[%clk 0:02:51]}  Nc6 {[%clk 0:02:36]} 7. O-O {[%clk 0:02:50]}  e5 {[%clk 0:02:24]} 8. h3 {[%clk 0:02:41]}  O-O {[%clk 0:02:23]} 9. Re1 {[%clk 0:02:40]}  Qc7 {[%clk 0:02:17]} 10. Be3 {[%clk 0:02:39]}  cxd4 {[%clk 0:02:13]} 11. cxd4 {[%clk 0:02:40]}  Bd7 {[%clk 0:02:12]} 12. Nc3 {[%clk 0:02:38]}  Nb4 {[%clk 0:02:05]} 13. Bb3 {[%clk 0:02:36]}  a5 {[%clk 0:01:56]} 14. Rc1 {[%clk 0:02:36]}  Qb8 {[%clk 0:01:49]} 15. a3 {[%clk 0:02:20]}  Na6 {[%clk 0:01:49]} 16. Qd2 {[%clk 0:02:03]}  Rc8 {[%clk 0:01:34]} 17. Bg5 {[%clk 0:02:01]}  exd4 {[%clk 0:01:26]} 18. Nxd4 {[%clk 0:02:00]}  Nc5 {[%clk 0:01:26]} 19. Ba2 {[%clk 0:02:00]}  Ra6 {[%clk 0:01:16]} 20. Bxf6 {[%clk 0:01:58]}  Bxf6 {[%clk 0:01:15]} 21. Nd5 {[%clk 0:01:59]}  Bd8 {[%clk 0:01:01]} 22. Rc3 {[%clk 0:02:00]}  Ne6 {[%clk 0:00:34]} 23. Nf5 {[%clk 0:01:59]}  Rxc3 {[%clk 0:00:32]} 24. Qxc3 {[%clk 0:01:59]}  f6 {[%clk 0:00:19]} 25. Nf4 {[%clk 0:01:57]}  d5 {[%clk 0:00:15]} 26. Nxe6 {[%clk 0:01:35]}  Bxe6 {[%clk 0:00:14]} 27. Bxd5 {[%clk 0:01:36]}  Bxd5 {[%clk 0:00:13]} 28. exd5 {[%clk 0:01:37]}  Bc7 {[%clk 0:00:11]} 29. Re7 {[%clk 0:01:27]}  Be5 {[%clk 0:00:07]} 30. Rxg7+ {[%clk 0:01:26]}  Kh8 {[%clk 0:00:08]} 31. Qe3 {[%clk 0:01:13]}  Qc8 {[%clk 0:00:07]} 32. Rxh7+ {[%clk 0:01:11]}  Kg8 {[%clk 0:00:07]} 33. Rh8+ {[%clk 0:01:09]}  Kf7 {[%clk 0:00:00]} 34. Rxc8 {[%clk 0:01:08]} 1-0

[Event "December 19 Late 2023"]
[Site "https://www.chess.com"]
[Date "2023.12.19"]
[Round "3"]
[White "Seletsky, Grigory"]
[Black "Boyer, Mahel"]
[Result "0-1"]
[Board "69"]
[TimeControl "180+1"]
[WhiteFideId "14112191"]
[BlackFideId "45102422"]
[WhiteElo "2482"]
[BlackElo "2449"]
[WhiteTeam "UKR"]
[BlackTeam "FRA"]
[WhiteClock "0:01:16"]
[BlackClock "0:01:09"]

1. b3 {[%clk 0:02:58]}  d6 {[%clk 0:03:00]} 2. Bb2 {[%clk 0:02:59]}  e5 {[%clk 0:03:00]} 3. d4 {[%clk 0:02:57]}  exd4 {[%clk 0:02:59]} 4. Qxd4 {[%clk 0:02:57]}  Nc6 {[%clk 0:03:00]} 5. Qd2 {[%clk 0:02:58]}  d5 {[%clk 0:02:59]} 6. g3 {[%clk 0:02:57]}  Nf6 {[%clk 0:02:48]} 7. Bg2 {[%clk 0:02:57]}  Ne4 {[%clk 0:02:49]} 8. Bxe4 {[%clk 0:02:48]}  dxe4 {[%clk 0:02:50]} 9. Qxd8+ {[%clk 0:02:47]}  Nxd8 {[%clk 0:02:49]} 10. e3 {[%clk 0:02:46]}  Ne6 {[%clk 0:01:52]} 11. Nd2 {[%clk 0:02:40]}  f5 {[%clk 0:01:52]} 12. O-O-O {[%clk 0:02:37]}  Bd7 {[%clk 0:01:37]} 13. Ne2 {[%clk 0:02:35]}  O-O-O {[%clk 0:01:37]} 14. Nf4 {[%clk 0:02:34]}  Nxf4 {[%clk 0:01:34]} 15. gxf4 {[%clk 0:02:32]}  Rg8 {[%clk 0:01:35]} 16. h4 {[%clk 0:02:30]}  Be8 {[%clk 0:01:30]} 17. Nc4 {[%clk 0:02:19]}  Rxd1+ {[%clk 0:01:28]} 18. Rxd1 {[%clk 0:02:17]}  Bh5 {[%clk 0:01:29]} 19. Rg1 {[%clk 0:02:14]}  g6 {[%clk 0:01:28]} 20. Bf6 {[%clk 0:02:12]}  b5 {[%clk 0:01:25]} 21. Ne5 {[%clk 0:02:08]}  Ba3+ {[%clk 0:01:25]} 22. Kd2 {[%clk 0:02:06]}  Rf8 {[%clk 0:01:26]} 23. Bg5 {[%clk 0:02:01]}  b4 {[%clk 0:01:19]} 24. Nc4 {[%clk 0:01:40]}  h6 {[%clk 0:01:15]} 25. Nxa3 {[%clk 0:01:39]}  hxg5 {[%clk 0:01:14]} 26. Nc4 {[%clk 0:01:35]}  Rd8+ {[%clk 0:01:12]} 27. Kc1 {[%clk 0:01:33]}  gxh4 {[%clk 0:01:07]} 28. Rh1 {[%clk 0:01:33]}  Rd1+ {[%clk 0:01:07]} 29. Rxd1 {[%clk 0:01:29]}  Bxd1 {[%clk 0:01:08]} 30. Kxd1 {[%clk 0:01:22]}  h3 {[%clk 0:01:08]} 31. Nd2 {[%clk 0:01:16]}  h2 {[%clk 0:01:09]} 0-1